fUST/lending_fUST_20250814
["ID","MTS","AMOUNT","RATE_DAILY","PERIOD"]
[379074378,1755115895179,-460.0,0.00021917,2]
[379074379,1755115895192,-585.4,0.00021917,2]
[379074380,1755115895201,-460.0,0.00021917,2]
[379074381,1755115895212,-701.63,0.00021917,2]
[379074382,1755115895222,-460.0,0.00021917,2]
[379074383,1755115895232,-460.0,0.00021917,2]
[379074384,1755115895241,-460.0,0.00021917,2]
[379074385,1755115895251,-506.15,0.00021917,2]
[379074386,1755115895261,-772.37,0.00021917,2]
[379074387,1755115895271,-460.0,0.00021917,2]
[379074388,1755115895281,-460.0,0.00021917,2]
[379074389,1755115895293,-460.0,0.00021917,2]
[379074390,1755115895302,-460.0,0.00021917,2]
[379074391,1755115895312,-500.0,0.00021917,2]
[379074392,1755115895322,-460.0,0.00021917,2]
[379074393,1755115895331,-460.0,0.00021917,2]
[379074394,1755115895341,-210.02076478,0.00021917,2]
[379074395,1755115895351,-460.0,0.00021917,2]
[379074396,1755115895361,-499.24,0.00021917,2]
[379074397,1755115895370,-291.24768508,0.00021917,2]
[379074398,1755115895379,-460.0,0.00021917,2]
[379074399,1755115895389,-1083.49,0.00021917,2]
[379074400,1755115895399,-634.17,0.00021917,2]
[379074401,1755115895408,-1683.37,0.00021917,2]
[379074402,1755115895417,-1312.7,0.00021917,2]
[379074403,1755115895426,-552.5,0.00021917,2]
[379074404,1755115895435,-460.0,0.00021917,2]
[379074405,1755115895445,-460.0,0.00021917,2]
[379074406,1755115895454,-460.0,0.00021917,2]
[379074407,1755115895464,-1170.68,0.00021917,2]
[379074408,1755115895473,-460.0,0.00021917,2]
[379074409,1755115895483,-460.0,0.00021917,2]
[379074410,1755115895493,-460.0,0.00021917,2]
[379074411,1755115895502,-460.0,0.00021917,2]
[379074412,1755115895512,-788.14,0.00021917,2]
[379074413,1755115895521,-258.839888,0.00021917,2]
[379074414,1755115895531,-460.0,0.00021917,2]
[379074415,1755115895542,-258.839888,0.00021917,2]
[379074416,1755115895551,-740.52,0.00021917,2]
[379074417,1755115895561,-460.0,0.00021917,2]
[379074418,1755115895570,-1140.3,0.00021917,2]
[379074419,1755115895582,-460.0,0.00021917,2]
[379074420,1755115895735,-863.07,0.00021917,2]
[379074421,1755115895746,-1663.95,0.00021917,2]
[379074422,1755115895755,-961.59,0.00021917,2]
[379074423,1755115895765,-579.66,0.00021917,2]
[379074424,1755115895774,-460.0,0.00021917,2]
[379074425,1755115895783,-460.0,0.00021917,2]
[379074426,1755115895794,-460.0,0.00021917,2]
[379074427,1755115895803,-1069.56,0.00021917,2]
[379074428,1755115895812,-460.0,0.00021917,2]
[379074429,1755115895821,-1437.38,0.00021917,2]
[379074430,1755115895829,-460.0,0.00021917,2]
[379074431,1755115895838,-460.0,0.00021917,2]
[379074432,1755115895848,-460.0,0.00021917,2]
[379074433,1755115895857,-151.0,0.00021917,2]
[379074434,1755115895867,-476.92805943,0.00021917,2]
[379074435,1755115895876,-460.0,0.00021917,2]
[379074436,1755115895885,-460.0,0.00021917,2]
[379074437,1755115895895,-460.0,0.00021917,2]
[379074438,1755115895904,-460.0,0.00021917,2]
[379074439,1755115895914,-460.0,0.00021917,2]
[379074440,1755115895923,-460.0,0.00021917,2]
[379074441,1755115895933,-467.85,0.00021917,2]
[379074442,1755115895942,-460.0,0.00021917,2]
[379074443,1755115895951,-460.0,0.00021917,2]
[379074444,1755115895960,-1485.36,0.00021917,2]
[379074445,1755115895970,-1252.41,0.00021917,2]
[379074446,1755115895979,-460.0,0.00021917,2]
[379074447,1755115895988,-602.53,0.00021917,2]
[379074448,1755115895997,-905.73,0.00021917,2]
[379074449,1755115896007,-460.0,0.00021917,2]
[379074450,1755115896016,-460.0,0.00021917,2]
[379074451,1755115896025,-2758.86,0.00021917,2]
[379074452,1755115896034,-184.99243989,0.00021917,2]
[379074453,1755115896045,-735.89,0.00021917,2]
[379074454,1755115896055,-504.54,0.00021917,2]
[379074455,1755115896064,-468.50682789,0.00021917,2]
[379074456,1755115896073,-460.0,0.00021917,2]
[379074457,1755115896083,-460.0,0.00021917,2]
[379074458,1755115896093,-619.7,0.00021917,2]
[379074459,1755115896102,-618.3,0.00021917,2]
[379074460,1755115896112,-577.53,0.00021917,2]
[379074461,1755115896121,-477.37,0.00021917,2]
[379074462,1755115896131,-460.0,0.00021917,2]
[379074463,1755115896140,-460.0,0.00021917,2]
[379074464,1755115896150,-621.59,0.00021917,2]
[379074465,1755115896159,-718.3,0.00021917,2]
[379074466,1755115896169,-482.48,0.00021917,2]
[379074467,1755115896179,-460.0,0.00021917,2]
[379074468,1755115896192,-460.0,0.00021917,2]
[379074469,1755115896201,-841.58,0.00021917,2]
[379074470,1755115896211,-460.0,0.00021917,2]
[379074471,1755115896222,-460.0,0.00021917,2]
[379074472,1755115896231,-460.0,0.00021917,2]
[379074473,1755115896241,-460.0,0.00021917,2]
[379074474,1755115896250,-460.0,0.00021917,2]
[379074475,1755115896260,-460.0,0.00021917,2]
[379074476,1755115896270,-1057.0,0.00021917,2]
[379074477,1755115896280,-725.98,0.00021917,2]
[379074478,1755115896291,-460.0,0.00021917,2]
[379074479,1755115896301,-1761.85,0.00021917,2]
[379074480,1755115896310,-460.0,0.00021917,2]
[379074481,1755115896322,-573.0,0.00021917,2]
[379074482,1755115896331,-668.47,0.00021917,2]
[379074483,1755115896342,-611.81,0.00021917,2]
[379074484,1755115896351,-1341.69,0.00021917,2]
[379074485,1755115896361,-659.86,0.00021917,2]
[379074486,1755115896370,-460.0,0.00021917,2]
[379074487,1755115896379,-740.97,0.00021917,2]
[379074488,1755115896389,-460.0,0.00021917,2]
[379074489,1755115896398,-460.0,0.00021917,2]
[379074490,1755115896408,-460.0,0.00021917,2]
[379074491,1755115896417,-563.24,0.00021917,2]
[379074492,1755115896426,-460.0,0.00021917,2]
[379074493,1755115896436,-758.65,0.00021917,2]
[379074494,1755115896445,-2239.5,0.00021917,2]
[379074495,1755115896455,-299.92555999,0.00021917,2]
[379074496,1755115896464,-1881.39,0.00021917,2]
[379074497,1755115896474,-460.0,0.00021917,2]
[379074498,1755115896483,-850.59,0.00021917,2]
[379074499,1755115896492,-2386.49,0.00021917,2]
[379074500,1755115896501,-989.38,0.00021917,2]
[379074501,1755115896511,-460.0,0.00021917,2]
[379074502,1755115896521,-753.2,0.00021917,2]
[379074503,1755115896530,-6147.95,0.00021917,2]
[379074504,1755115896541,-460.0,0.00021917,2]
[379074505,1755115896550,-1410.98,0.00021917,2]
[379074506,1755115896559,-399.02347275,0.00021917,2]
[379074507,1755115896569,-1219.51,0.00021917,2]
[379074508,1755115896578,-1932.04,0.00021917,2]
[379074509,1755115896587,-460.0,0.00021917,2]
[379074510,1755115896596,-460.0,0.00021917,2]
[379074511,1755115896605,-460.0,0.00021917,2]
[379074512,1755115896615,-814.53,0.00021917,2]
[379074513,1755115896624,-460.0,0.00021917,2]
[379074514,1755115896633,-460.0,0.00021917,2]
[379074515,1755115896642,-460.0,0.00021917,2]
[379074516,1755115896657,-460.0,0.00021917,2]
[379074517,1755115896678,-812.34,0.00021917,2]
[379074518,1755115896696,-460.0,0.00021917,2]
[379074519,1755115896716,-1280.72,0.00021917,2]
[379074520,1755115896737,-735.0,0.00021917,2]
[379074521,1755115896754,-545.15,0.00021917,2]
[379074522,1755115896772,-4267.69,0.00021917,2]
[379074523,1755115896788,-4192.29,0.00021917,2]
[379074524,1755115896804,-460.0,0.00021917,2]
[379074525,1755115896822,-488.08481396,0.00021917,2]
[379074526,1755115896843,-1382.67,0.00021917,2]
[379074527,1755115896856,-923.5,0.00021917,2]
[379074528,1755115896873,-567.17,0.00021917,2]
[379074529,1755115896889,-526.6678656,0.00021917,2]
[379074530,1755115896905,-1960.74,0.00021917,2]
[379074531,1755115896921,-650.46,0.00021917,2]
[379074532,1755115896936,-672.78,0.00021917,2]
[379074533,1755115896951,-460.0,0.00021917,2]
[379074534,1755115896966,-460.0,0.00021917,2]
[379074535,1755115896981,-543.86,0.00021917,2]
[379074536,1755115896995,-472.25,0.00021917,2]
[379074537,1755115897010,-460.0,0.00021917,2]
[379074538,1755115897025,-573.95,0.00021917,2]
[379074539,1755115897040,-1053.23,0.00021917,2]
[379074540,1755115897054,-460.0,0.00021917,2]
[379074541,1755115897069,-474.27,0.00021917,2]
[379074542,1755115897083,-576.66,0.00021917,2]
[379074543,1755115897098,-460.0,0.00021917,2]
[379074544,1755115897112,-460.0,0.00021917,2]
[379074545,1755115897126,-662.93,0.00021917,2]
[379074546,1755115897142,-460.0,0.00021917,2]
[379074547,1755115897155,-543.96,0.00021917,2]
[379074548,1755115897171,-2189.79,0.00021917,2]
[379074549,1755115897186,-460.0,0.00021917,2]
[379074550,1755115897200,-669.33,0.00021917,2]
[379074551,1755115897215,-460.0,0.00021917,2]
[379074552,1755115897230,-946.5,0.00021917,2]
[379074553,1755115897245,-489.38,0.00021917,2]
[379074554,1755115897260,-1436.04,0.00021917,2]
[379074555,1755115897275,-507.52,0.00021917,2]
[379074556,1755115897293,-1824.0,0.00021917,2]
[379074557,1755115897308,-733.14,0.00021917,2]
[379074558,1755115897323,-460.0,0.00021917,2]
[379074559,1755115897338,-478.0,0.00021917,2]
[379074560,1755115897352,-542.62,0.00021917,2]
[379074561,1755115897369,-460.0,0.00021917,2]
[379074562,1755115897385,-1363.79,0.00021917,2]
[379074563,1755115897400,-460.0,0.00021917,2]
[379074564,1755115897414,-710.55,0.00021917,2]
[379074565,1755115897428,-285.55,0.00021917,2]
[379074566,1755115897443,-441.55744541,0.00021917,2]
[379074567,1755115897457,-2530.94,0.00021917,2]
[379074568,1755115897472,-1829.45,0.00021917,2]
[379074569,1755115897486,-460.0,0.00021917,2]
[379074570,1755115897501,-573.95,0.00021917,2]
[379074571,1755115897516,-460.0,0.00021917,2]
[379074572,1755115897530,-1224.78,0.00021917,2]
[379074573,1755115897545,-1547.71,0.00021917,2]
[379074574,1755115897559,-460.0,0.00021917,2]
[379074575,1755115897574,-737.39,0.00021917,2]
[379074576,1755115897588,-1811.96,0.00021917,2]
[379074577,1755115897603,-460.0,0.00021917,2]
[379074578,1755115897617,-460.0,0.00021917,2]
[379074579,1755115897630,-460.0,0.00021917,2]
[379074580,1755115897645,-460.0,0.00021917,2]
[379074581,1755115897659,-266.20487348,0.00021917,2]
[379074582,1755115897674,-460.0,0.00021917,2]
[379074583,1755115897688,-1053.5,0.00021917,2]
[379074584,1755115897702,-1353.67,0.00021917,2]
[379074585,1755115897716,-460.0,0.00021917,2]
[379074586,1755115897730,-3653.82,0.00021917,2]
[379074587,1755115897744,-3269.31,0.00021917,2]
[379074588,1755115897759,-460.0,0.00021917,2]
[379074589,1755115897773,-472.6,0.00021917,2]
[379074590,1755115897787,-854.33,0.00021917,2]
[379074591,1755115897801,-3963.71,0.00021917,2]
[379074592,1755115897816,-465.3411609,0.00021917,2]
[379074593,1755115897832,-460.0,0.00021917,2]
[379074594,1755115897847,-746.01,0.00021917,2]
[379074595,1755115897861,-661.67,0.00021917,2]
[379074596,1755115897875,-2762.44,0.00021917,2]
[379074597,1755115897889,-635.51,0.00021917,2]
[379074598,1755115897903,-770.63,0.00021917,2]
[379074599,1755115897917,-460.0,0.00021917,2]
[379074600,1755115897932,-1663.54,0.00021917,2]
[379074601,1755115897947,-460.0,0.00021917,2]
[379074602,1755115897962,-950.59,0.00021917,2]
[379074603,1755115897976,-1920.17,0.00021917,2]
[379074604,1755115897990,-823.48,0.00021917,2]
[379074605,1755115898005,-480.24,0.00021917,2]
[379074606,1755115898019,-460.0,0.00021917,2]
[379074607,1755115898033,-852.98,0.00021917,2]
[379074608,1755115898049,-786.91,0.00021917,2]
[379074609,1755115898063,-1415.94,0.00021917,2]
[379074610,1755115898077,-510.55499618,0.00021917,2]
[379074611,1755115898237,-274.08666461,0.00021917,2]
[379074612,1755115898293,-460.0,0.00021917,2]
[379074613,1755115898303,-564.18,0.00021917,2]
[379074614,1755115898313,-1035.39,0.00021917,2]
[379074615,1755115898323,-2050.41,0.00021917,2]
[379074616,1755115898332,-360.16603561,0.00021917,2]
[379074617,1755115898341,-1312.86,0.00021917,2]
[379074618,1755115898351,-757.19,0.00021917,2]
[379074619,1755115898360,-596.07,0.00021917,2]
[379074620,1755115898370,-1767.5,0.00021917,2]
[379074621,1755115898380,-460.0,0.00021917,2]
[379074622,1755115898390,-1225.81,0.00021917,2]
[379074623,1755115898400,-1655.44,0.00021917,2]
[379074624,1755115898409,-1021.93,0.00021917,2]
[379074625,1755115898418,-460.0,0.00021917,2]
[379074626,1755115898427,-509.79,0.00021917,2]
[379074627,1755115898438,-1703.22,0.00021917,2]
[379074628,1755115898448,-460.0,0.00021917,2]
[379074629,1755115898457,-460.0,0.00021917,2]
[379074630,1755115898466,-791.06,0.00021917,2]
[379074631,1755115898475,-539.21,0.00021917,2]
[379074632,1755115898484,-539.21,0.00021917,2]
[379074633,1755115898493,-460.0,0.00021917,2]
[379074634,1755115898502,-539.21,0.00021917,2]
[379074635,1755115898512,-539.21,0.00021917,2]
[379074636,1755115898521,-539.21,0.00021917,2]
[379074637,1755115898530,-539.21,0.00021917,2]
[379074638,1755115898540,-4058.25,0.00021917,2]
[379074639,1755115898549,-539.21,0.00021917,2]
[379074640,1755115898559,-539.21,0.00021917,2]
[379074641,1755115898568,-539.21,0.00021917,2]
[379074642,1755115898577,-460.0,0.00021917,2]
[379074643,1755115898586,-539.21,0.00021917,2]
[379074644,1755115898596,-539.21,0.00021917,2]
[379074645,1755115898605,-460.0,0.00021917,2]
[379074646,1755115898614,-460.0,0.00021917,2]
[379074647,1755115898624,-460.0,0.00021917,2]
[379074648,1755115898633,-2019.38,0.00021917,2]
[379074649,1755115898642,-460.0,0.00021917,2]
[379074650,1755115898652,-6700.12,0.00021917,2]
[379074651,1755115898661,-460.0,0.00021917,2]
[379074652,1755115898670,-1104.55,0.00021917,2]
[379074653,1755115898679,-684.95,0.00021917,2]
[379074654,1755115898688,-460.0,0.00021917,2]
[379074655,1755115898697,-1758.47,0.00021917,2]
[379074656,1755115898707,-460.0,0.00021917,2]
[379074657,1755115898716,-460.0,0.00021917,2]
[379074658,1755115898726,-460.0,0.00021917,2]
[379074659,1755115898735,-1671.8,0.00021917,2]
[379074660,1755115898744,-11030.84,0.00021917,2]
[379074661,1755115898754,-460.0,0.00021917,2]
[379074662,1755115898763,-460.0,0.00021917,2]
[379074663,1755115898773,-460.0,0.00021917,2]
[379074664,1755115898782,-460.0,0.00021917,2]
[379074665,1755115898793,-762.63,0.00021917,2]
[379074666,1755115898803,-460.0,0.00021917,2]
[379074667,1755115898812,-8448.68,0.00021917,2]
[379074668,1755115898821,-3051.43,0.00021917,2]
[379074669,1755115898830,-460.0,0.00021917,2]
[379074670,1755115898840,-460.0,0.00021917,2]
[379074671,1755115898850,-460.0,0.00021917,2]
[379074672,1755115898861,-460.0,0.00021917,2]
[379074673,1755115898872,-691.76,0.00021917,2]
[379074674,1755115898882,-460.0,0.00021917,2]
[379074675,1755115898892,-300.0,0.00021918,2]
[379074676,1755115898901,-300.0,0.00021918,2]
[379074677,1755115898911,-25859.89087003,0.00022,2]
[379074678,1755115898926,-245908.70478907,0.00022,2]
[379074679,1755115898946,-38550.59791702,0.00022,2]
[379074680,1755115898965,-5419.83,0.00022,2]
[379074681,1755115898981,-461.84428375,0.00022,7]
[379074682,1755115898990,-151.0,0.00022,7]
[379074683,1755115898999,-151.0,0.00022,7]
[379074684,1755115899009,-185.02877,0.00022,7]
[379074685,1755115899018,-151.0,0.00022,7]
[379074686,1755115899027,-151.0,0.00022,7]
[379074687,1755115899037,-151.0,0.00022,7]
[379074688,1755115899048,-151.0,0.00022,7]
[379074689,1755115899057,-374.9,0.00022,7]
[379074690,1755115899067,-151.0,0.00022,7]
[379074691,1755115899076,-151.0,0.00022,7]
[379074692,1755115899084,-151.0,0.00022,7]
[379074693,1755115899094,-151.0,0.00022,7]
[379074694,1755115899103,-151.0,0.00022,7]
[379074695,1755115899112,-231.744056,0.00022,7]
[379074696,1755115899121,-231.744056,0.00022,7]
[379074697,1755115899130,-151.0,0.00022,7]
[379074698,1755115899140,-151.0,0.00022,7]
[379074699,1755115899150,-17504.94,0.00022,7]
[379074700,1755115899159,-8703.67,0.00022,7]
[379074701,1755115899168,-250.48064,0.00022,7]
[379074702,1755115899180,-250.48064,0.00022,7]
[379074703,1755115899191,-215.55264861,0.00022,7]
[379074704,1755115899201,-153.435149,0.00022033,2]
[379074705,1755115899210,-3778.1564674,0.00022122,2]
[379074706,1755115899228,-151.0,0.00022168,7]
[379074707,1755115899241,-209.730705,0.00022191,7]
[379074708,1755115899251,-151.0,0.00022191,7]
[379074709,1755115899261,-151.0,0.00022191,7]
[379074710,1755115899270,-151.0,0.00022191,7]
[379074711,1755115899280,-151.0,0.00022191,7]
[379074712,1755115899289,-151.0,0.00022191,7]
[379074713,1755115899299,-1462.191758,0.00022191,7]
[379074714,1755115899309,-1462.191758,0.00022191,7]
[379074715,1755115899318,-151.0,0.00022191,7]
[379074716,1755115899328,-151.0,0.00022191,7]
[379074717,1755115899338,-155.293366,0.00022191,7]
[379074718,1755115899348,-180.100457,0.00022191,7]
[379074719,1755115899357,-180.100457,0.00022191,7]
[379074720,1755115899367,-742.469247,0.00022191,7]
[379074721,1755115899376,-742.469247,0.00022191,7]
[379074722,1755115899385,-151.0,0.00022191,7]
[379074723,1755115899395,-732.95,0.00022191,2]
[379074724,1755115899404,-1719.5,0.00022191,2]
[379074725,1755115899414,-368.720086,0.00022191,7]
[379074726,1755115899423,-368.720086,0.00022191,7]
[379074727,1755115899432,-460.0,0.00022191,2]
[379074728,1755115899441,-662.8,0.00022191,2]
[379074729,1755115899451,-578.27,0.00022191,2]
[379074730,1755115899461,-462.01,0.00022191,2]
[379074731,1755115899470,-460.0,0.00022191,2]
[379074732,1755115899479,-469.49,0.00022191,2]
[379074733,1755115899489,-460.0,0.00022191,2]
[379074734,1755115899498,-460.0,0.00022191,2]
[379074735,1755115899507,-460.0,0.00022191,2]
[379074736,1755115899516,-475.12,0.00022191,2]
[379074737,1755115899525,-460.0,0.00022191,2]
[379074738,1755115899535,-460.0,0.00022191,2]
[379074739,1755115899546,-585.4,0.00022191,2]
[379074740,1755115899555,-460.0,0.00022191,2]
[379074741,1755115899565,-701.63,0.00022191,2]
[379074742,1755115899574,-399.5952212,0.00022191,2]
[379074743,1755115899584,-460.0,0.00022191,2]
[379074744,1755115899593,-460.0,0.00022191,2]
[379074745,1755115899602,-506.15,0.00022191,2]
[379074746,1755115899611,-772.37,0.00022191,2]
[379074747,1755115899621,-460.0,0.00022191,2]
[379074748,1755115899630,-460.0,0.00022191,2]
[379074749,1755115899639,-460.0,0.00022191,2]
[379074750,1755115899648,-460.0,0.00022191,2]
[379074751,1755115899658,-500.0,0.00022191,2]
[379074752,1755115899667,-460.0,0.00022191,2]
[379074753,1755115899676,-460.0,0.00022191,2]
[379074754,1755115899685,-460.0,0.00022191,2]
[379074755,1755115899694,-499.24,0.00022191,2]
[379074756,1755115899703,-460.0,0.00022191,2]
[379074757,1755115899712,-1083.49,0.00022191,2]
[379074758,1755115899721,-634.17,0.00022191,2]
[379074759,1755115899730,-1683.37,0.00022191,2]
[379074760,1755115899750,-1312.7,0.00022191,2]
[379074761,1755115899761,-552.5,0.00022191,2]
[379074762,1755115899770,-460.0,0.00022191,2]
[379074763,1755115899780,-460.0,0.00022191,2]
[379074764,1755115899790,-460.0,0.00022191,2]
[379074765,1755115899802,-1170.68,0.00022191,2]
[379074766,1755115899812,-460.0,0.00022191,2]
[379074767,1755115899822,-460.0,0.00022191,2]
[379074768,1755115899832,-524.77066938,0.00022191,2]
[379074769,1755115899842,-460.0,0.00022191,2]
[379074770,1755115899851,-788.14,0.00022191,2]
[379074771,1755115899861,-258.839888,0.00022191,7]
[379074772,1755115899871,-460.0,0.00022191,2]
[379074773,1755115899880,-258.839888,0.00022191,7]
[379074774,1755115899890,-740.52,0.00022191,2]
[379074775,1755115899900,-460.0,0.00022191,2]
[379074776,1755115899910,-1140.3,0.00022191,2]
[379074777,1755115899920,-460.0,0.00022191,2]
[379074778,1755115899929,-863.07,0.00022191,2]
[379074779,1755115899939,-1663.95,0.00022191,2]
[379074780,1755115899949,-961.59,0.00022191,2]
[379074781,1755115899959,-579.66,0.00022191,2]
[379074782,1755115899968,-460.0,0.00022191,2]
[379074783,1755115899977,-407.91293757,0.00022191,2]
[379074784,1755115899987,-343.74395754,0.00022191,2]
[379074785,1755115899997,-1069.56,0.00022191,2]
[379074786,1755115900007,-460.0,0.00022191,2]
[379074787,1755115900017,-1437.38,0.00022191,2]
[379074788,1755115900027,-460.0,0.00022191,2]
[379074789,1755115900036,-460.0,0.00022191,2]
[379074790,1755115900048,-460.0,0.00022191,2]
[379074791,1755115900058,-151.0,0.00022191,7]
[379074792,1755115900068,-460.0,0.00022191,2]
[379074793,1755115900078,-460.0,0.00022191,2]
[379074794,1755115900087,-460.0,0.00022191,2]
[379074795,1755115900097,-460.0,0.00022191,2]
[379074796,1755115900107,-296.88212933,0.00022191,2]
[379074797,1755115900117,-460.0,0.00022191,2]
[379074798,1755115900127,-467.85,0.00022191,2]
[379074799,1755115900136,-460.0,0.00022191,2]
[379074800,1755115900146,-460.0,0.00022191,2]
[379074801,1755115900156,-1485.36,0.00022191,2]
[379074802,1755115900166,-1252.41,0.00022191,2]
[379074803,1755115900176,-460.0,0.00022191,2]
[379074804,1755115900190,-602.53,0.00022191,2]
[379074805,1755115900200,-905.73,0.00022191,2]
[379074806,1755115900210,-460.0,0.00022191,2]
[379074807,1755115900219,-2758.86,0.00022191,2]
[379074808,1755115900230,-460.0,0.00022191,2]
[379074809,1755115900240,-735.89,0.00022191,2]
[379074810,1755115900250,-504.54,0.00022191,2]
[379074811,1755115900261,-195.22193377,0.00022191,2]
[379074812,1755115900272,-460.0,0.00022191,2]
[379074813,1755115900281,-619.7,0.00022191,2]
[379074814,1755115900291,-618.3,0.00022191,2]
[379074815,1755115900301,-577.53,0.00022191,2]
[379074816,1755115900311,-477.37,0.00022191,2]
[379074817,1755115900321,-460.0,0.00022191,2]
[379074818,1755115900330,-473.12233434,0.00022191,2]
[379074819,1755115900340,-621.59,0.00022191,2]
[379074820,1755115900350,-718.3,0.00022191,2]
[379074821,1755115900360,-482.48,0.00022191,2]
[379074822,1755115900369,-460.0,0.00022191,2]
[379074823,1755115900379,-460.0,0.00022191,2]
[379074824,1755115900388,-841.58,0.00022191,2]
[379074825,1755115900398,-460.0,0.00022191,2]
[379074826,1755115900408,-460.0,0.00022191,2]
[379074827,1755115900417,-460.0,0.00022191,2]
[379074828,1755115900427,-460.0,0.00022191,2]
[379074829,1755115900436,-177.42896435,0.00022191,2]
[379074830,1755115900445,-460.0,0.00022191,2]
[379074831,1755115900455,-1057.0,0.00022191,2]
[379074832,1755115900465,-725.98,0.00022191,2]
[379074833,1755115900474,-460.0,0.00022191,2]
[379074834,1755115900484,-1761.85,0.00022191,2]
[379074835,1755115900494,-460.0,0.00022191,2]
[379074836,1755115900503,-573.0,0.00022191,2]
[379074837,1755115900513,-668.47,0.00022191,2]
[379074838,1755115900522,-611.81,0.00022191,2]
[379074839,1755115900532,-1341.69,0.00022191,2]
[379074840,1755115900542,-659.86,0.00022191,2]
[379074841,1755115900552,-460.0,0.00022191,2]
[379074842,1755115900562,-740.97,0.00022191,2]
[379074843,1755115900571,-460.0,0.00022191,2]
[379074844,1755115900581,-460.0,0.00022191,2]
[379074845,1755115900591,-460.0,0.00022191,2]
[379074846,1755115900600,-563.24,0.00022191,2]
[379074847,1755115900610,-758.65,0.00022191,2]
[379074848,1755115900619,-2239.5,0.00022191,2]
[379074849,1755115900629,-1881.39,0.00022191,2]
[379074850,1755115900639,-460.0,0.00022191,2]
[379074851,1755115900648,-850.59,0.00022191,2]
[379074852,1755115900658,-2386.49,0.00022191,2]
[379074853,1755115900667,-989.38,0.00022191,2]
[379074854,1755115900677,-460.0,0.00022191,2]
[379074855,1755115900686,-753.2,0.00022191,2]
[379074856,1755115900696,-6147.95,0.00022191,2]
[379074857,1755115900705,-460.0,0.00022191,2]
[379074858,1755115900714,-1410.98,0.00022191,2]
[379074859,1755115900724,-1219.51,0.00022191,2]
[379074860,1755115900733,-1932.04,0.00022191,2]
[379074861,1755115900743,-460.0,0.00022191,2]
[379074862,1755115900753,-460.0,0.00022191,2]
[379074863,1755115900762,-460.0,0.00022191,2]
[379074864,1755115900772,-814.53,0.00022191,2]
[379074865,1755115900782,-460.0,0.00022191,2]
[379074866,1755115900791,-460.0,0.00022191,2]
[379074867,1755115900801,-460.0,0.00022191,2]
[379074868,1755115900811,-460.0,0.00022191,2]
[379074869,1755115900821,-812.34,0.00022191,2]
[379074870,1755115900830,-460.0,0.00022191,2]
[379074871,1755115900841,-1280.72,0.00022191,2]
[379074872,1755115900850,-735.0,0.00022191,2]
[379074873,1755115900859,-545.15,0.00022191,2]
[379074874,1755115900869,-4267.69,0.00022191,2]
[379074875,1755115900880,-4192.29,0.00022191,2]
[379074876,1755115900890,-460.0,0.00022191,2]
[379074877,1755115900899,-1382.67,0.00022191,2]